bitfinex/quotes_ETHUSD_20230404
["timestamp","ask_amount","ask_price","bid_price","bid_amount"]
[1680650592656,11.16204,1861.3,1860.9,0.1]
[1680650593022,11.69929,1861.3,1860.9,0.1]
[1680650594135,11.70829,1861.3,1860.9,0.1]
[1680650594340,11.69929,1861.3,1860.9,0.1]
[1680650594537,11.16204,1861.3,1860.9,0.1]
[1680650594746,9.7404,1861.3,1861.0,0.00369523]
[1680650595064,9.7404,1861.3,1861.0,0.24549523]
[1680650595826,0.002,1861.3,1861.0,0.24549523]
[1680650596028,3.1705367,1861.5,1861.0,0.24549523]
[1680650596238,3.1705367,1861.5,1861.0,0.32840775]
[1680650596433,3.15128372,1861.5,1861.0,0.81201775]
[1680650596638,3.41988372,1861.5,1861.0,0.08660775]
[1680650597438,3.95708372,1861.5,1861.0,0.00369523]
[1680650597691,3.95708372,1861.5,1860.9,0.1]
[1680650597846,1.146,1861.3,1860.9,0.1]
[1680650598020,1.41464,1861.3,1860.9,0.1]
[1680650599379,1.146,1861.3,1860.9,0.1]
[1680650600180,1.146,1861.3,1860.9,0.34181]
[1680650600530,0.01925298,1861.2,1860.9,0.1]
[1680650600767,1.155,1861.1,1860.9,0.1]
[1680650603982,0.01925298,1861.2,1860.9,0.34181]
[1680650604184,1.146,1861.3,1860.9,0.82544]
[1680650604474,1.146,1861.3,1860.9,0.907984]
[1680650604688,1.155,1861.4,1860.9,0.91167943]
[1680650606074,1.99628372,1861.5,1861.0,8.39202218]
[1680650606247,1.99628372,1861.5,1861.1,0.24178]
[1680650606441,1.99628372,1861.5,1861.1,0.86358022]
[1680650606676,1.99628372,1861.5,1861.1,1.10537022]
[1680650608210,1.99628372,1861.5,1861.1,0.86358022]
[1680650608421,1.99628372,1861.5,1860.9,5.81223943]
[1680650608422,1.153,1861.4,1860.9,5.81223943]
[1680650608573,1.153,1861.4,1861.0,0.2418]
[1680650608918,1.153,1861.4,1860.9,8.82806161]
[1680650609114,1.153,1861.4,1861.0,0.2418]
[1680650609415,1.153,1861.4,1861.0,1.12460616]
[1680650610812,1.153,1861.4,1861.0,1.60821616]
[1680650611170,1.99628372,1861.5,1861.1,8.39202218]
[1680650611368,1.99393049,1861.5,1861.1,8.40002218]
[1680650611674,1.99393049,1861.5,1861.2,2.53243222]
[1680650613031,1.99393049,1861.5,1861.2,2.53843222]
[1680650613325,1.94393049,1861.5,1861.2,2.53243222]
[1680650614012,1.94393049,1861.5,1861.2,1.08177222]
[1680650614219,1.94393049,1861.5,1861.2,0.24177]
[1680650614523,3.36753049,1861.5,1861.1,0.006]
[1680650614701,3.09893049,1861.5,1861.0,6.21110616]
[1680650614883,3.11818347,1861.5,1861.1,0.24179]
[1680650615974,1.94393049,1861.5,1861.1,0.72537]
[1680650616279,1.94393049,1861.5,1861.2,0.072537]
[1680650616493,1.94393049,1861.5,1861.3,0.24176]
[1680650616775,1.94393049,1861.5,1861.3,0.72529]
[1680650619806,1.94393049,1861.5,1861.3,9.11731218]
[1680650619994,1.94393049,1861.5,1861.3,9.12531218]
[1680650620189,1.94393049,1861.5,1861.4,0.91253122]
[1680650620391,1.94393049,1861.5,1861.4,1.63778122]
[1680650624256,1.94393049,1861.5,1861.4,10.0298034]
[1680650624461,1.94393049,1861.5,1861.4,10.0358034]
[1680650625522,1.94393049,1861.5,1861.4,10.0318034]
[1680650626526,1.94393049,1861.5,1861.4,10.0378034]
[1680650628016,1.94393049,1861.5,1861.4,10.0318034]
[1680650628216,1.94393049,1861.5,1861.4,10.0378034]
[1680650633088,1.89393049,1861.5,1861.4,10.0318034]
[1680650634957,1.89393049,1861.5,1861.4,14.4168034]
[1680650636252,1.89393049,1861.5,1861.4,14.4228034]
[1680650636451,1.89393049,1861.5,1861.4,14.4208034]
[1680650637291,1.89393049,1861.5,1861.4,13.2658034]
[1680650637585,1.89393049,1861.5,1861.4,13.2638034]
[1680650637792,1.89393049,1861.5,1861.4,14.4208034]
[1680650637995,1.89393049,1861.5,1861.4,14.4228034]
[1680650638155,1.89393049,1861.5,1861.4,14.68643782]
[1680650639093,1.89393049,1861.5,1861.4,14.69043782]
[1680650641183,0.009,1862.0,1861.5,0.088]
[1680650641356,0.11000001,1862.2,1861.9,9.73465]
[1680650641553,0.11900001,1862.2,1862.1,5.626]
[1680650641798,0.11900001,1862.2,1862.1,10.9478544]
[1680650642002,0.11000001,1862.2,1862.1,9.9812044]
[1680650644759,0.11000001,1862.2,1862.1,10.2112044]
[1680650645095,0.11000001,1862.2,1862.1,10.0612044]
[1680650646510,0.11000001,1862.2,1862.1,0.24366]
[1680650646660,0.12925299,1862.2,1861.9,0.24168]
[1680650649100,0.12925299,1862.2,1861.9,0.72505]
[1680650650952,1.153,1862.1,1861.9,0.72505]
[1680650651659,1.153,1862.1,1861.9,0.24168]
[1680650652825,1.153,1862.1,1861.9,0.72505]
[1680650653468,1.153,1862.1,1861.9,0.24168]
[1680650654725,1.153,1862.1,1861.9,0.72505]
[1680650656605,1.151,1862.1,1861.9,0.72505]
[1680650659350,1.151,1862.1,1861.9,0.72184486]
[1680650660478,0.11000001,1862.2,1862.0,8.39202218]
[1680650660683,0.11000001,1862.2,1862.1,1.69163]
[1680650662484,0.11000001,1862.2,1862.1,4.45765218]
[1680650662687,0.11000001,1862.2,1862.1,10.08365218]
[1680650662863,0.11000001,1862.2,1862.1,14.5658914]
[1680650663569,0.11000001,1862.2,1862.1,15.98852582]
[1680650664089,0.11000001,1862.2,1862.1,20.81361887]
[1680650665946,0.11000001,1862.2,1862.1,19.65861887]
[1680650668005,0.11000001,1862.2,1862.1,19.39098445]
[1680650674548,0.11000001,1862.2,1862.1,19.65861887]
[1680650679740,0.11000001,1862.2,1862.1,19.42861887]
[1680650683308,0.10642077,1862.2,1862.1,19.42861887]
[1680650692941,0.10642077,1862.2,1862.1,19.42492582]
[1680650693139,0.10642077,1862.2,1862.1,19.1572914]
[1680650698526,0.10642077,1862.2,1862.1,23.9905414]
[1680650700114,0.10642077,1862.2,1862.1,24.25817582]
[1680650700754,0.009,1862.6,1862.1,24.48817582]
[1680650700909,0.11000001,1862.7,1862.3,5.626]
[1680650701114,0.11000001,1862.7,1862.4,12.49957218]
[1680650701314,0.11000001,1862.7,1862.4,12.50157218]
[1680650712617,0.11000001,1862.7,1862.6,5.626]
[1680650712821,0.06000001,1862.7,1862.6,9.25662218]
[1680650713132,0.06000001,1862.7,1862.6,10.94779218]
[1680650715865,0.06000001,1862.7,1862.6,5.32179218]
[1680650716167,0.06000001,1862.7,1862.6,2.55577]
[1680650716321,0.06000001,1862.7,1862.6,2.55377]
[1680650717391,0.06000001,1862.7,1862.6,1.69117]
[1680650736743,0.05739574,1862.7,1862.6,1.69117]
[1680650741913,0.70739574,1862.7,1862.5,0.002]
[1680650742120,2.592,1862.6,1862.1,0.008]
[1680650742413,0.65,1862.4,1862.3,0.24163]
[1680650747946,1.299,1862.4,1862.3,0.24163]
[1680650748620,2.62025298,1862.4,1862.0,0.13309869]
[1680650748802,0.65,1862.1,1862.0,0.24167]
[1680650749298,0.645,1862.2,1862.0,0.24167]
[1680650749510,0.645,1862.2,1862.0,0.72502]
[1680650752151,1.154,1862.3,1862.0,0.72502]
[1680650756083,1.154,1862.3,1862.0,3.66021518]
[1680650756246,10.24899574,1862.7,1862.0,3.66021518]
[1680650756247,1.142,1862.5,1862.1,2.76602218]
[1680650756588,1.142,1862.5,1862.2,0.72493]
[1680650756771,0.009,1862.6,1862.2,3.49095218]
[1680650756973,0.009,1862.6,1862.3,0.34909522]
[1680650757175,11.40299574,1862.7,1862.4,0.72486]
[1680650757757,11.39399574,1862.7,1862.4,0.72486]
[1680650757961,11.40299574,1862.7,1862.4,0.72486]
[1680650758158,11.39999574,1862.7,1862.4,0.72486]
[1680650758387,11.39399574,1862.7,1862.5,0.072486]
[1680650758576,11.39399574,1862.7,1862.6,0.24159]
[1680650759251,1.20239574,1862.7,1862.6,0.24159]
[1680650759480,1.19747228,1862.7,1862.6,0.24159]
[1680650760692,1.19747228,1862.7,1862.6,0.72478]
[1680650760693,0.05447228,1862.7,1862.6,0.72478]
[1680650760892,0.05447228,1862.7,1862.6,0.8939]
[1680650766341,0.05447228,1862.7,1862.6,0.72478]
[1680650766979,0.05447228,1862.7,1862.4,9.50841245]
[1680650767180,0.05447228,1862.7,1862.4,9.50840245]
[1680650767384,0.05447228,1862.7,1862.4,9.2631]
[1680650768319,0.05447228,1862.7,1862.4,0.008]
[1680650768532,1.142,1862.6,1862.3,4.9587]
[1680650768681,1.142,1862.6,1862.3,4.9567]
[1680650769426,1.41044,1862.6,1862.3,0.006]
[1680650769746,1.154,1862.4,1862.1,3.006]
[1680650770080,1.154,1862.4,1862.2,3.0]
[1680650770284,1.154,1862.4,1862.2,3.006]
[1680650770733,1.154,1862.4,1862.2,0.006]
[1680650770918,1.2694,1862.4,1862.0,0.77662957]
[1680650771231,1.154,1862.4,1862.0,0.77662957]
[1680650771389,1.154,1862.5,1862.0,0.77662957]
[1680650772236,1.154,1862.5,1862.0,1.25997957]
[1680650772529,1.154,1862.5,1862.1,0.00369305]
[1680650772833,0.01925298,1862.6,1862.2,0.24164]
[1680650773039,0.01925298,1862.6,1862.2,0.72493]
[1680650773822,0.01925298,1862.6,1862.2,0.24164]
[1680650774434,0.01925298,1862.6,1862.1,0.73066305]
[1680650774728,0.01925298,1862.6,1862.2,0.07306631]
[1680650775232,0.01925298,1862.6,1862.2,0.24164]
[1680650775915,0.01925298,1862.6,1862.1,0.24534305]
[1680650778629,0.01925298,1862.6,1862.1,0.72866305]
[1680650778821,0.01925298,1862.6,1862.1,3.49668523]
[1680650779023,0.01925298,1862.6,1862.1,3.50068523]
[1680650780459,0.01925298,1862.6,1862.3,0.24163]
[1680650780661,0.01596802,1862.6,1862.3,0.24163]
[1680650781237,0.01596802,1862.6,1862.2,0.59169852]
[1680650781575,0.01596802,1862.6,1862.2,0.59170852]
[1680650781776,0.01596802,1862.6,1862.2,0.35006852]
[1680650782140,0.01596802,1862.6,1862.2,0.59170852]
[1680650782338,0.01596802,1862.6,1862.3,0.05917085]
[1680650787215,0.01596802,1862.6,1862.2,0.35006852]
[1680650787514,0.01596802,1862.6,1862.2,0.59170852]
[1680650789314,0.01596802,1862.6,1862.2,0.35006852]
[1680650789490,0.01596802,1862.6,1862.2,0.59170852]
[1680650791804,0.06547228,1862.7,1862.3,2.76932802]
[1680650792002,0.06547228,1862.7,1862.4,1.0017928]
[1680650792003,0.05447228,1862.7,1862.4,1.0017928]
[1680650792204,0.05447228,1862.7,1862.4,3.76781498]
[1680650792921,0.05447228,1862.7,1862.4,8.82991498]
[1680650793119,0.05447228,1862.7,1862.4,8.83191498]
[1680650793319,0.05447228,1862.7,1862.5,0.8831915]
[1680650793477,0.05447228,1862.7,1862.4,0.008]
[1680650793670,0.05447228,1862.7,1862.3,0.00530584]
[1680650793915,0.05447228,1862.7,1862.4,0.24162]
[1680650798920,0.05447228,1862.7,1862.4,0.72486]
[1680650801512,0.05056064,1862.7,1862.4,0.72486]
[1680650801727,0.05056064,1862.7,1862.5,0.072486]
[1680650801931,0.05056064,1862.7,1862.5,0.314076]
[1680650802626,0.05056064,1862.7,1862.5,0.24161]
[1680650802796,1.26400001,1862.8,1862.5,0.24161]
[1680650802996,1.26400001,1862.8,1862.5,0.72483]
[1680650803633,1.26400001,1862.8,1862.5,0.24161]
[1680650806952,0.11000001,1862.8,1862.6,0.00367272]
[1680650807120,0.11000001,1862.8,1862.7,0.72474]
[1680650807819,0.11000001,1862.8,1862.6,0.35312521]
[1680650808156,0.11000001,1862.8,1862.6,0.00367272]
[1680650808709,0.11000001,1862.8,1862.6,0.24526272]
[1680650809514,0.11000001,1862.8,1862.6,0.00367272]
[1680650809710,0.11000001,1862.8,1862.5,3.53019738]
[1680650809929,0.11000001,1862.8,1862.5,0.77179738]
[1680650810656,0.11000001,1862.8,1862.5,0.2416]
[1680650811618,0.75900001,1862.9,1862.5,0.2416]
[1680650812906,0.75900001,1862.9,1862.5,0.72482]
[1680650813353,0.75900001,1862.9,1862.5,0.2416]
[1680650822254,0.66396802,1863.0,1862.5,0.2416]
[1680650822503,0.65,1862.9,1862.5,0.2416]
[1680650824941,0.65,1862.9,1862.5,0.72482]
[1680650825584,0.648,1863.0,1862.5,3.49084218]
[1680650825888,0.648,1863.0,1862.5,3.49484218]
[1680650826116,0.648,1863.0,1862.5,3.49684218]
[1680650826257,0.648,1863.0,1862.6,0.34968422]
[1680650826595,0.648,1863.0,1862.7,0.72474]
[1680650827185,1.149,1863.1,1862.7,0.72474]
[1680650828375,9.3445,1863.2,1862.7,0.72474]
[1680650828908,0.002,1863.2,1862.8,2.76602218]
[1680650829210,5.8841,1863.3,1862.9,6.65707389]
[1680650829211,0.002,1863.3,1862.9,6.65707389]
[1680650829506,0.11000001,1863.4,1863.0,3.00755218]
[1680650829703,0.11000001,1863.4,1863.1,0.30075522]
[1680650830259,0.11000001,1863.4,1863.1,0.54228522]
[1680650831090,0.11000001,1863.4,1863.1,0.30075522]
[1680650831275,0.11000001,1863.4,1863.1,0.54228522]
[1680650831762,0.11000001,1863.4,1863.1,1.02534522]
[1680650832096,0.11000001,1863.4,1863.2,0.10253452]
[1680650832665,0.10740347,1863.4,1863.2,0.10253452]
[1680650834185,0.10740347,1863.4,1863.1,0.54227522]
[1680650837123,0.10740347,1863.4,1863.1,1.02533522]
[1680650838091,0.10740347,1863.4,1863.1,1.02733522]
[1680650838332,0.10740347,1863.4,1863.1,1.03133522]
[1680650839820,0.10740347,1863.4,1863.1,3.7973574]
[1680650840129,0.10740347,1863.4,1863.2,5.53013574]
[1680650840298,0.10740347,1863.4,1863.3,0.72451]
[1680650842519,0.10740347,1863.4,1863.3,9.14153218]
[1680650842704,0.10740347,1863.4,1863.3,9.14753218]
[1680650843403,0.10740347,1863.4,1863.3,9.15434239]
[1680650843608,0.10740347,1863.4,1863.3,10.7193972]
[1680650844115,0.10740347,1863.4,1863.3,13.7193972]
[1680650844900,0.10740347,1863.4,1863.3,15.1023972]
[1680650850462,0.00040347,1863.4,1863.3,16.2493972]
[1680650853387,0.00040347,1863.4,1863.3,19.4593972]
[1680650853587,0.11900001,1863.9,1863.6,5.649]
[1680650853748,0.11900001,1863.9,1863.8,13.67252218]
[1680650853946,0.11900001,1863.9,1863.8,16.67452218]
[1680650854151,0.11900001,1863.9,1863.8,16.90452218]
[1680650854354,0.11900001,1863.9,1863.8,18.04752218]
[1680650854554,0.11900001,1863.9,1863.8,20.1987644]
[1680650855160,0.11900001,1863.9,1863.8,20.20557278]
[1680650857981,0.11900001,1863.9,1863.8,20.74213393]
[1680650859810,0.11000001,1863.9,1863.8,20.74213393]
[1680650861482,0.11000001,1863.9,1863.8,19.58913393]
[1680650862884,0.11000001,1863.9,1863.8,18.44613393]
[1680650868244,0.11000001,1863.9,1863.8,18.21613393]
[1680650868395,0.11000001,1863.9,1863.8,15.20932555]
[1680650869734,0.11900001,1863.9,1863.8,15.20932555]
[1680650870044,0.11900001,1863.9,1863.8,18.43932555]
[1680650873817,0.11900001,1863.9,1863.8,18.57518394]
[1680650874557,0.11000001,1863.9,1863.8,18.57518394]
[1680650874913,0.10725589,1863.9,1863.8,18.57518394]
[1680650877753,0.10725589,1863.9,1863.8,10.00838057]
[1680650877914,1.25025589,1863.9,1863.8,7.00838057]
[1680650878559,0.11625589,1863.9,1863.8,7.00838057]
[1680650879923,0.11625589,1863.9,1863.8,7.24235839]
[1680650880141,2.29208148,1863.9,1863.8,1.82793839]
[1680650880340,2.29208148,1863.9,1863.8,0.24144]
[1680650880543,2.29208148,1863.9,1863.5,0.96588]
[1680650880720,1.13908148,1863.9,1863.8,0.24144]
[1680650885438,1.13908148,1863.9,1863.8,0.72432]
[1680650894743,1.13008148,1863.9,1863.8,0.72432]
[1680650895145,6.26200815,1863.8,1863.5,0.008]
[1680650895379,2.5703,1863.6,1863.3,0.428996]
[1680650895557,1.153,1863.4,1863.3,0.428996]
[1680650898097,1.16896802,1863.4,1863.3,0.428996]
[1680650899491,1.16896802,1863.4,1862.9,0.24155]
[1680650899692,1.149,1863.2,1862.9,0.24155]
[1680650900964,1.149,1863.2,1862.8,0.24155]
[1680650901162,0.1149,1863.1,1862.8,0.24155]
[1680650902182,1.2579,1863.1,1862.8,0.24155]
[1680650902482,1.143,1863.1,1862.8,0.24155]
[1680650904070,1.143,1863.1,1862.8,0.72469]
[1680650905721,1.153,1863.3,1862.9,2.77283385]
[1680650905924,1.153,1863.3,1863.1,0.72459]
[1680650906075,1.153,1863.3,1863.1,0.24153]
[1680650907789,1.153,1863.3,1862.9,3.74704385]
[1680650907990,1.153,1863.3,1863.0,0.24153]
[1680650909910,10.9529,1863.4,1863.0,0.24153]
[1680650913015,10.9529,1863.4,1863.0,0.23933267]
[1680650914154,12.0497868,1863.4,1862.9,3.25594385]
[1680650914360,1.153,1863.3,1862.8,0.002]
[1680650914540,1.42135,1863.3,1862.7,0.24158]
[1680650914745,1.42135,1863.3,1862.7,3.00760218]
[1680650914943,0.142135,1863.2,1862.7,3.00760218]
[1680650915246,0.15810302,1863.2,1862.7,0.24158]
[1680650916217,1.153,1863.1,1862.7,0.24158]
[1680650916428,0.01596802,1863.0,1862.6,8.0192]
[1680650916778,0.01596802,1863.0,1862.6,8.25479]
[1680650916779,1.143,1862.8,1862.6,8.25479]
[1680650916927,1.143,1862.8,1862.6,3.34559]
[1680650917127,1.143,1862.8,1862.6,0.34159]
[1680650921083,9.6856,1863.1,1862.6,3.59080218]
[1680650926001,0.01596802,1863.0,1862.6,3.59080218]
[1680650928263,0.01596802,1863.0,1862.6,4.61290371]
[1680650928465,0.01596802,1863.0,1862.6,4.61490371]
[1680650929009,0.01596802,1863.0,1862.6,4.61690371]
[1680650929374,0.01596802,1863.0,1862.6,4.61490371]
[1680650930096,0.01596802,1863.0,1862.6,0.82678]
[1680650930288,0.01596802,1863.0,1862.6,0.34159]
[1680650932107,1.15896802,1863.0,1862.6,0.34159]
[1680650932669,1.15896802,1863.0,1862.6,0.82478]
[1680650934525,1.15896802,1863.0,1862.6,0.34159]
[1680650934725,2.24342482,1863.0,1862.6,0.34159]
[1680650936686,2.24006098,1863.0,1862.6,0.34159]
[1680650937484,2.50844098,1863.0,1862.6,0.1]
[1680650937726,2.24006098,1863.0,1862.6,0.34159]
[1680650937900,0.2240061,1862.9,1862.6,0.34159]
[1680650938096,0.2240061,1862.9,1862.6,0.82478]
[1680650938300,2.24006098,1863.0,1862.6,0.82478]
[1680650940389,0.002,1863.1,1862.6,3.59080218]
[1680650940726,11.0135,1863.2,1862.6,3.59280218]
[1680650940901,11.0155,1863.2,1862.6,3.59680218]
[1680650941232,11.0155,1863.2,1862.6,8.38671128]
[1680650941412,11.0155,1863.2,1862.7,0.83867113]
[1680650941800,11.0155,1863.2,1862.8,0.24156]
[1680650942006,1.155,1863.2,1862.8,0.7247]
[1680650942317,1.153,1863.2,1862.8,0.7247]
[1680650945143,1.153,1863.2,1862.8,0.24156]
[1680650948336,1.153,1863.2,1862.8,0.7247]
[1680650948486,1.153,1863.2,1862.8,0.88103711]
[1680650950298,1.153,1863.2,1862.8,0.7247]
[1680650950634,1.153,1863.2,1862.8,0.24156]
[1680650952928,5.24654418,1863.3,1862.7,0.24157]
[1680650952929,6.39654418,1863.3,1862.7,0.24157]
[1680650953433,6.12820418,1863.3,1862.7,0.24157]
[1680650953639,6.39654418,1863.3,1862.7,0.24157]
[1680650953810,0.63965442,1863.2,1862.7,0.24157]
[1680650958839,1.153,1863.1,1862.6,14.3171]
[1680650959161,1.153,1863.1,1862.6,14.55869]
[1680650959162,1.42137,1863.1,1862.6,14.55869]
[1680650959368,1.35910244,1863.1,1862.6,5.12949]
[1680650961551,1.35511301,1863.1,1862.6,5.12949]
[1680650963081,1.35511301,1863.1,1862.6,5.61268]
[1680650964139,1.35511301,1863.1,1862.6,8.37870218]
[1680650964140,1.14901057,1863.1,1862.6,8.37870218]
[1680650964472,1.16560418,1863.2,1862.7,0.01000856]
[1680650964625,1.16560418,1863.2,1862.8,0.72469]
[1680650964824,1.16560418,1863.2,1862.8,1.19479086]
[1680650965680,1.16560418,1863.2,1862.8,1.19679086]
[1680650970761,0.002,1863.3,1862.8,3.96481304]
[1680650971096,11.0155,1863.4,1862.9,2.76602218]
[1680650971303,0.002,1863.4,1863.0,1.00120222]
[1680650971595,6.55518836,1863.7,1863.0,6.16820222]
[1680650971793,6.56618836,1863.7,1863.0,6.17020222]
[1680650971981,6.56618836,1863.7,1863.1,0.61702022]
[1680650972295,0.65,1863.6,1863.2,0.72453]
[1680650974705,0.65,1863.6,1863.2,0.2415]
[1680650974994,0.65,1863.4,1863.0,15.22773]
[1680650975292,0.65,1863.4,1863.0,15.22573]
[1680650975498,0.65,1863.4,1863.0,15.22773]
[1680650977198,0.65,1863.4,1863.0,15.71082]
[1680650977495,0.65,1863.4,1863.0,17.70483597]
[1680650981809,0.65860418,1863.5,1863.0,17.70483597]
[1680650982098,0.01260418,1863.5,1863.0,17.70283597]
[1680650982615,0.011,1863.7,1863.1,2.76602218]
[1680650982763,0.75725589,1863.9,1863.2,0.72451]
[1680650982764,14.4216,1863.8,1863.2,0.72451]
[1680650982964,14.4326,1863.8,1863.2,3.49053218]
[1680650983196,14.4326,1863.8,1863.3,0.34905322]
[1680650983379,14.4326,1863.8,1863.4,0.24148]
[1680650983574,14.4326,1863.8,1863.4,0.72446]
[1680650983983,14.4236,1863.8,1863.3,0.7245]
[1680650984610,14.4236,1863.8,1863.3,0.24149]
[1680650984814,15.94258559,1863.8,1863.3,0.24149]
[1680650986121,15.94258559,1863.8,1863.3,0.7245]
[1680650986327,15.93920803,1863.8,1863.3,0.7245]
[1680650987325,14.42022244,1863.8,1863.3,0.7265]
[1680650989089,0.002,1863.8,1863.4,2.77602697]
[1680650989396,0.10725589,1863.9,1863.5,1.69033]
[1680650989722,0.10725589,1863.9,1863.7,0.72436]
[1680650992801,0.10725589,1863.9,1863.7,0.24145]
[1680650993439,0.10725589,1863.9,1863.5,0.006]
[1680650993620,0.10725589,1863.9,1863.5,0.24748]
[1680650993938,1.25925589,1863.9,1863.4,0.006]
[1680650994097,2.28118148,1863.9,1863.5,0.24148]
[1680650994294,2.29378566,1863.9,1863.5,0.24148]
[1680650994496,2.29378566,1863.9,1863.5,0.72444]
[1680651001644,2.29378566,1863.9,1863.5,0.24148]
[1680651001936,0.22937857,1863.8,1863.5,0.24148]
[1680651002096,1.38137857,1863.8,1863.4,0.004]
[1680651002297,1.38137857,1863.8,1863.3,0.2475]
[1680651002698,1.38137857,1863.8,1863.3,0.2455]
[1680651003008,0.13813786,1863.7,1863.3,0.2435]
[1680651003398,0.13813786,1863.7,1863.3,0.2415]
[1680651004624,0.13813786,1863.7,1863.3,0.72451]
[1680651005004,0.13813786,1863.7,1863.3,0.72651]
[1680651005239,0.13813786,1863.7,1863.3,0.72451]
[1680651005849,0.15074204,1863.7,1863.3,0.72451]
[1680651006742,0.15074204,1863.7,1863.3,0.72651]
[1680651007054,0.15074204,1863.7,1863.3,0.72451]
[1680651008015,0.15074204,1863.7,1863.3,0.72651]
[1680651008855,0.15074204,1863.7,1863.3,0.72451]
[1680651010427,0.15074204,1863.7,1863.3,0.72651]
[1680651010960,0.15074204,1863.7,1863.3,0.72451]
[1680651012827,0.15074204,1863.7,1863.3,0.72651]
[1680651013020,0.15074204,1863.7,1863.3,0.72451]
[1680651014164,2.91676422,1863.7,1863.3,0.72451]
[1680651014365,0.29167642,1863.6,1863.3,0.72851]
[1680651014528,0.29167642,1863.6,1863.3,0.73051]
[1680651018238,2.91676422,1863.7,1863.3,0.73051]
[1680651018436,0.15074204,1863.7,1863.3,0.72851]
[1680651018664,0.01260418,1863.7,1863.3,0.72451]
[1680651018967,0.0105271,1863.7,1863.3,0.72451]
[1680651022388,0.20511204,1863.6,1863.3,0.72451]
[1680651026974,0.20511204,1863.6,1863.5,0.72444]
[1680651028091,0.10725589,1863.9,1863.5,0.72444]
[1680651029091,0.20186532,1863.8,1863.5,0.72444]
[1680651029399,0.20186532,1863.8,1863.5,1.31765138]
[1680651037516,0.20186532,1863.8,1863.5,0.24148]
[1680651038706,0.20186532,1863.8,1863.4,5.44868]
[1680651039023,0.20186532,1863.8,1863.4,0.008]
[1680651039217,0.20186532,1863.8,1863.3,0.487]
[1680651039408,0.20186532,1863.8,1863.4,0.24149]
[1680651039587,0.84782244,1863.8,1863.4,0.24149]
[1680651039793,3.91802218,1863.7,1863.2,0.008]
[1680651039988,4.14802218,1863.7,1863.2,0.24151]
[1680651040925,4.41630218,1863.7,1863.2,0.24151]
[1680651041079,0.0105271,1863.6,1863.2,0.24151]
[1680651041280,0.45321003,1863.6,1863.2,0.24151]
[1680651041679,0.45321003,1863.6,1863.2,0.72454]
[1680651041680,0.0105271,1863.6,1863.2,0.72454]
[1680651042117,0.00807075,1863.6,1863.2,0.72454]
[1680651042488,0.00807075,1863.6,1863.2,3.49056218]
[1680651042699,0.002,1863.8,1863.3,5.77118776]
[1680651042902,4.83745589,1863.9,1863.3,5.77118776]
[1680651042903,4.83745589,1863.9,1863.4,2.26751878]
[1680651043112,4.83745589,1863.9,1863.4,2.27351878]
[1680651043803,0.10725589,1863.9,1863.4,2.27351878]
[1680651044213,0.10725589,1863.9,1863.4,7.22311878]
[1680651044526,0.10725589,1863.9,1863.4,7.22511878]
[1680651044732,0.10725589,1863.9,1863.5,0.72251188]
[1680651044890,0.10725589,1863.9,1863.6,0.72439]
[1680651048091,0.10725589,1863.9,1863.6,0.24146]
[1680651049638,0.10725589,1863.9,1863.6,0.72439]
[1680651050836,0.10725589,1863.9,1863.6,0.24146]
[1680651051044,2.18484148,1863.9,1863.5,0.24746]
[1680651052144,3.33684148,1863.9,1863.5,0.24746]
[1680651052357,3.33684148,1863.9,1863.5,0.24546]
[1680651052521,3.33684148,1863.9,1863.5,0.24146]
[1680651053800,3.33684148,1863.9,1863.5,0.24147]
[1680651054003,3.33684148,1863.9,1863.4,5.19908]
[1680651054004,0.53576934,1863.8,1863.4,5.19908]
[1680651054245,0.20208519,1863.8,1863.4,5.19908]
[1680651054634,0.20208519,1863.8,1863.4,5.68206]
[1680651055150,3.34491223,1863.9,1863.4,5.68206]
[1680651060751,3.34491223,1863.9,1863.4,5.19908]
[1680651061563,3.34491223,1863.9,1863.4,5.68006]
[1680651061749,0.33449122,1863.8,1863.4,5.68206]
[1680651061957,3.34491223,1863.9,1863.4,5.68206]
[1680651065346,3.34161692,1863.9,1863.4,5.67606]
[1680651065687,1.152,1863.7,1863.4,0.002]
[1680651065889,0.1152,1863.6,1863.1,0.48306]
[1680651066093,0.1152,1863.6,1863.2,0.24151]
[1680651066388,0.1152,1863.6,1863.2,0.72454]
[1680651067243,0.7652,1863.6,1863.2,0.72454]
[1680651067441,0.65,1863.6,1863.2,0.72454]
[1680651069167,0.29095331,1863.5,1863.2,0.72454]
[1680651070439,0.29095331,1863.5,1863.2,0.73885367]
[1680651070973,5.3798,1863.8,1863.2,0.73885367]
[1680651071179,5.3798,1863.8,1863.3,0.07388537]
[1680651071496,5.3798,1863.8,1863.4,0.72446]
[1680651072203,4.7338,1863.8,1863.4,0.72446]
[1680651072398,4.7228,1863.8,1863.4,0.72446]
[1680651073573,4.7228,1863.8,1863.4,0.24148]
[1680651074967,6.45743313,1863.8,1863.2,9.12071367]
[1680651075281,1.16007075,1863.7,1863.2,9.34191]
[1680651075478,1.16007075,1863.7,1863.2,9.82494]
[1680651081079,0.00807075,1863.7,1863.2,9.82494]
[1680651082490,0.00807075,1863.7,1863.2,0.24351]
[1680651082697,0.00807075,1863.7,1863.2,0.24151]
[1680651082921,0.62388483,1863.7,1863.2,0.24151]
[1680651083385,1.152,1863.6,1863.1,0.24153]
[1680651083582,1.152,1863.4,1863.0,5.0868]
[1680651083887,1.152,1863.4,1863.0,5.32634]
[1680651086436,1.14825487,1863.4,1863.0,5.33234]
[1680651087801,1.14825487,1863.4,1863.0,5.0908]
[1680651088204,1.14825487,1863.4,1863.0,5.33234]
[1680651089312,1.14825487,1863.4,1863.0,5.3240356]
[1680651092440,0.13227075,1863.5,1863.0,7.35402016]
[1680651092441,0.01707075,1863.5,1863.0,7.35402016]
[1680651092625,0.00807075,1863.5,1863.0,10.12004234]
[1680651092826,0.009,1863.7,1863.1,2.76602218]
[1680651093031,0.009,1863.7,1863.2,1.69054]
[1680651093231,0.009,1863.7,1863.3,0.169054]
[1680651093428,0.009,1863.7,1863.4,0.72447]
[1680651093633,0.009,1863.7,1863.4,0.24149]
[1680651094143,0.57342286,1863.6,1863.4,0.24149]
[1680651095245,0.57342286,1863.6,1863.4,0.19149]